fUSD/lending_fUSD_20240222
["ID","MTS","AMOUNT","RATE_DAILY","PERIOD"]
[314849090,1708593047763,-985.04,0.00035616,2]
[314849091,1708593047773,-734.9,0.00035616,2]
[314849092,1708593047783,-500.0,0.00035616,2]
[314849093,1708593047792,-582.45,0.00035616,2]
[314849094,1708593047802,-500.0,0.00035616,2]
[314849095,1708593047811,-500.0,0.00035616,2]
[314849096,1708593047821,-500.0,0.00035616,2]
[314849097,1708593047831,-500.0,0.00035616,2]
[314849098,1708593047841,-500.0,0.00035616,2]
[314849099,1708593047851,-500.0,0.00035616,2]
[314849100,1708593047860,-500.0,0.00035616,2]
[314849101,1708593047869,-5901.0,0.00035616,2]
[314849102,1708593047879,-500.0,0.00035616,2]
[314849103,1708593047889,-500.0,0.00035616,2]
[314849104,1708593047898,-838.67,0.00035616,2]
[314849105,1708593047908,-500.0,0.00035616,2]
[314849106,1708593047917,-500.0,0.00035616,2]
[314849107,1708593047927,-500.0,0.00035616,2]
[314849108,1708593047937,-500.0,0.00035616,2]
[314849109,1708593047946,-500.0,0.00035616,2]
[314849110,1708593047956,-500.0,0.00035616,2]
[314849111,1708593047965,-677.42,0.00035616,2]
[314849112,1708593047975,-500.0,0.00035616,2]
[314849113,1708593047984,-500.0,0.00035616,2]
[314849114,1708593047994,-714.02,0.00035616,2]
[314849115,1708593048003,-500.0,0.00035616,2]
[314849116,1708593048012,-500.0,0.00035616,2]
[314849117,1708593048022,-500.0,0.00035616,2]
[314849118,1708593048031,-520.51,0.00035616,2]
[314849119,1708593048040,-500.0,0.00035616,2]
[314849120,1708593048050,-500.0,0.00035616,2]
[314849121,1708593048059,-500.0,0.00035616,2]
[314849122,1708593048069,-500.0,0.00035616,2]
[314849123,1708593048080,-812.64,0.00035616,2]
[314849124,1708593048089,-1068.2,0.00035616,2]
[314849125,1708593048099,-500.0,0.00035616,2]
[314849126,1708593048109,-500.0,0.00035616,2]
[314849127,1708593048120,-503.40969947,0.00035616,2]
[314849128,1708593048132,-500.0,0.00035616,2]
[314849129,1708593048141,-559.78,0.00035616,2]
[314849130,1708593048150,-10000.0,0.00035616,2]
[314849131,1708593048160,-500.0,0.00035616,2]
[314849132,1708593048170,-500.0,0.00035616,2]
[314849133,1708593048179,-500.0,0.00035616,2]
[314849134,1708593048189,-662.07,0.00035616,2]
[314849135,1708593048199,-503.33471903,0.00035616,2]
[314849136,1708593048209,-500.0,0.00035616,2]
[314849137,1708593048218,-500.0,0.00035616,2]
[314849138,1708593048227,-594.31,0.00035616,2]
[314849139,1708593048237,-503.49891591,0.00035616,2]
[314849140,1708593048246,-500.0,0.00035616,2]
[314849141,1708593048256,-501.22111872,0.00035616,2]
[314849142,1708593048265,-500.0,0.00035616,2]
[314849143,1708593048274,-500.0,0.00035616,2]
[314849144,1708593048284,-500.0,0.00035616,2]
[314849145,1708593048293,-500.0,0.00035616,2]
[314849146,1708593048303,-641.89,0.00035616,2]
[314849147,1708593048312,-500.0,0.00035616,2]
[314849148,1708593048321,-509.73893896,0.00035616,2]
[314849149,1708593048330,-500.0,0.00035616,2]
[314849150,1708593048340,-500.0,0.00035616,2]
[314849151,1708593048349,-500.0,0.00035616,2]
[314849152,1708593048358,-301.18412567,0.00035616,2]
[314849153,1708593048368,-159.4596416,0.00035616,2]
[314849154,1708593048377,-500.0,0.00035616,2]
[314849155,1708593048387,-500.0,0.00035616,2]
[314849156,1708593048396,-1334.85,0.00035616,2]
[314849157,1708593048406,-500.0,0.00035616,2]
[314849158,1708593048415,-545.25,0.00035616,2]
[314849159,1708593048425,-500.0,0.00035616,2]
[314849160,1708593048435,-679.35,0.00035616,2]
[314849161,1708593048444,-500.0,0.00035616,2]
[314849162,1708593048455,-500.0,0.00035616,2]
[314849163,1708593048464,-1053.64,0.00035616,2]
[314849164,1708593048473,-720.73,0.00035616,2]
[314849165,1708593048482,-500.0,0.00035616,2]
[314849166,1708593048491,-494.6638786,0.00035616,2]
[314849167,1708593048500,-532.56280253,0.00035616,2]
[314849168,1708593048509,-502.71242815,0.00035616,2]
[314849169,1708593048518,-500.0,0.00035616,2]
[314849170,1708593048527,-500.0,0.00035616,2]
[314849171,1708593048536,-500.0,0.00035616,2]
[314849172,1708593048545,-500.0,0.00035616,2]
[314849173,1708593048555,-500.0,0.00035616,2]
[314849174,1708593048564,-500.0,0.00035616,2]
[314849175,1708593048573,-500.0,0.00035616,2]
[314849176,1708593048582,-618.42,0.00035616,2]
[314849177,1708593048592,-500.0,0.00035616,2]
[314849178,1708593048601,-905.59,0.00035616,2]
[314849179,1708593048610,-500.0,0.00035616,2]
[314849180,1708593048619,-730.1,0.00035616,2]
[314849181,1708593048629,-500.0,0.00035616,2]
[314849182,1708593048638,-500.0,0.00035616,2]
[314849183,1708593048647,-500.0,0.00035616,2]
[314849184,1708593048656,-500.0,0.00035616,2]
[314849185,1708593048665,-500.0,0.00035616,2]
[314849186,1708593048674,-591.18,0.00035616,2]
[314849187,1708593048683,-500.0,0.00035616,2]
[314849188,1708593048692,-500.0,0.00035616,2]
[314849189,1708593048701,-500.0,0.00035616,2]
[314849190,1708593048712,-508.67207957,0.00035616,2]
[314849191,1708593048721,-500.0,0.00035616,2]
[314849192,1708593048731,-500.0,0.00035616,2]
[314849193,1708593048740,-594.3,0.00035616,2]
[314849194,1708593048749,-1242.78,0.00035616,2]
[314849195,1708593048759,-500.0,0.00035616,2]
[314849196,1708593048768,-901.5,0.00035616,2]
[314849197,1708593048777,-504.36407626,0.00035616,2]
[314849198,1708593048787,-500.0,0.00035616,2]
[314849199,1708593048796,-424.78169131,0.00035616,2]
[314849200,1708593048806,-507.87443918,0.00035616,2]
[314849201,1708593048815,-500.0,0.00035616,2]
[314849202,1708593048826,-500.0,0.00035616,2]
[314849203,1708593048836,-958.0,0.00035616,2]
[314849204,1708593048845,-500.0,0.00035616,2]
[314849205,1708593048855,-500.0,0.00035616,2]
[314849206,1708593048865,-582.57,0.00035616,2]
[314849207,1708593048875,-500.0,0.00035616,2]
[314849208,1708593048885,-500.0,0.00035616,2]
[314849209,1708593048895,-555.83,0.00035616,2]
[314849210,1708593048904,-500.0,0.00035616,2]
[314849211,1708593048915,-600.8934936,0.00035616,2]
[314849212,1708593048924,-1000.0,0.00035616,7]
[314849213,1708593048934,-500.0,0.00035616,2]
[314849214,1708593048945,-500.0,0.00035616,2]
[314849215,1708593048954,-1930.84,0.00035616,2]
[314849216,1708593048964,-706.2,0.00035616,2]
[314849217,1708593048974,-514.31406766,0.00035616,2]
[314849218,1708593048984,-500.0,0.00035616,2]
[314849219,1708593048994,-500.0,0.00035616,2]
[314849220,1708593049004,-500.0,0.00035616,2]
[314849221,1708593049013,-844.76,0.00035616,2]
[314849222,1708593049023,-500.0,0.00035616,2]
[314849223,1708593049033,-500.0,0.00035616,2]
[314849224,1708593049042,-521.41,0.00035616,2]
[314849225,1708593049052,-611.17,0.00035616,2]
[314849226,1708593049062,-500.0,0.00035616,2]
[314849227,1708593049072,-503.91467274,0.00035616,2]
[314849228,1708593049082,-500.0,0.00035616,2]
[314849229,1708593049091,-702.51,0.00035616,2]
[314849230,1708593049101,-500.0,0.00035616,2]
[314849231,1708593049110,-500.0,0.00035616,2]
[314849232,1708593049125,-500.0,0.00035616,2]
[314849233,1708593049135,-500.0,0.00035616,2]
[314849234,1708593049144,-500.0,0.00035616,2]
[314849235,1708593049154,-661.65,0.00035616,2]
[314849236,1708593049164,-500.0,0.00035616,2]
[314849237,1708593049173,-500.0,0.00035616,2]
[314849238,1708593049183,-508.74945498,0.00035616,2]
[314849239,1708593049193,-500.0,0.00035616,2]
[314849240,1708593049202,-500.0,0.00035616,2]
[314849241,1708593049213,-500.0,0.00035616,2]
[314849242,1708593049222,-500.0,0.00035616,2]
[314849243,1708593049232,-500.0,0.00035616,2]
[314849244,1708593049241,-500.0,0.00035616,2]
[314849245,1708593049250,-513.42742396,0.00035616,2]
[314849246,1708593049260,-500.0,0.00035616,2]
[314849247,1708593049270,-500.0,0.00035616,2]
[314849248,1708593049279,-500.0,0.00035616,2]
[314849249,1708593049289,-811.19,0.00035616,2]
[314849250,1708593049298,-500.0,0.00035616,2]
[314849251,1708593049308,-500.0,0.00035616,2]
[314849252,1708593049317,-500.0,0.00035616,2]
[314849253,1708593049326,-500.0,0.00035616,2]
[314849254,1708593049336,-500.0,0.00035616,2]
[314849255,1708593049345,-500.0,0.00035616,2]
[314849256,1708593049354,-500.0,0.00035616,2]
[314849257,1708593049364,-500.0,0.00035616,2]
[314849258,1708593049374,-224.95145445,0.00035616,2]
[314849259,1708593049383,-602.71,0.00035616,2]
[314849260,1708593049392,-500.0,0.00035616,2]
[314849261,1708593049402,-500.0,0.00035616,2]
[314849262,1708593049411,-500.0,0.00035616,2]
[314849263,1708593049420,-528.80698785,0.00035616,2]
[314849264,1708593049430,-500.0,0.00035616,2]
[314849265,1708593049441,-562.55,0.00035616,2]
[314849266,1708593049449,-500.0,0.00035616,2]
[314849267,1708593049461,-512.1478248,0.00035616,2]
[314849268,1708593049470,-500.0,0.00035616,2]
[314849269,1708593049480,-501.74,0.00035616,2]
[314849270,1708593049489,-500.0,0.00035616,2]
[314849271,1708593049498,-500.0,0.00035616,2]
[314849272,1708593049507,-601.23,0.00035616,2]
[314849273,1708593049516,-500.0,0.00035616,2]
[314849274,1708593049525,-500.0,0.00035616,2]
[314849275,1708593049535,-309.10646831,0.00035616,2]
[314849276,1708593049546,-503.90927117,0.00035616,2]
[314849277,1708593049555,-1040.59,0.00035616,2]
[314849278,1708593049565,-500.0,0.00035616,2]
[314849279,1708593049574,-500.0,0.00035616,2]
[314849280,1708593049583,-516.72108248,0.00035616,2]
[314849281,1708593049592,-540.16847661,0.00035616,2]
[314849282,1708593049602,-500.0,0.00035616,2]
[314849283,1708593049611,-500.0,0.00035616,2]
[314849284,1708593049621,-511.83098537,0.00035616,2]
[314849285,1708593049631,-500.0,0.00035616,2]
[314849286,1708593049640,-500.0,0.00035616,2]
[314849287,1708593049650,-162.30813234,0.00035616,2]
[314849288,1708593049659,-500.0,0.00035616,2]
[314849289,1708593049669,-778.31,0.00035616,2]
[314849290,1708593049678,-587.66,0.00035616,2]
[314849291,1708593049688,-500.0,0.00035616,2]
[314849292,1708593049698,-500.0,0.00035616,2]
[314849293,1708593049707,-500.0,0.00035616,2]
[314849294,1708593049717,-500.0,0.00035616,2]
[314849295,1708593049726,-500.0,0.00035616,2]
[314849296,1708593049736,-500.0,0.00035616,2]
[314849297,1708593049745,-500.0,0.00035616,2]
[314849298,1708593049755,-504.78672289,0.00035616,2]
[314849299,1708593049764,-500.0,0.00035616,2]
[314849300,1708593049774,-641.72,0.00035616,2]
[314849301,1708593049784,-500.0,0.00035616,2]
[314849302,1708593049793,-500.0,0.00035616,2]
[314849303,1708593049803,-500.0,0.00035616,2]
[314849304,1708593049813,-500.0,0.00035616,2]
[314849305,1708593049823,-173.64773994,0.00035616,2]
[314849306,1708593049833,-502.98815346,0.00035616,2]
[314849307,1708593049842,-500.0,0.00035616,2]
[314849308,1708593049852,-1138.43,0.00035616,2]
[314849309,1708593049862,-898.56,0.00035616,2]
[314849310,1708593050199,-500.0,0.00035616,2]
[314849311,1708593050211,-500.0,0.00035616,2]
[314849312,1708593050221,-540.93728636,0.00035616,2]
[314849313,1708593050231,-500.0,0.00035616,2]
[314849314,1708593050241,-1000.0,0.00035616,7]
[314849315,1708593050251,-500.0,0.00035616,2]
[314849316,1708593050261,-534.71801843,0.00035616,2]
[314849317,1708593050271,-671.89,0.00035616,2]
[314849318,1708593050281,-500.0,0.00035616,2]
[314849319,1708593050290,-500.0,0.00035616,2]
[314849320,1708593050300,-573.1,0.00035616,2]
[314849321,1708593050309,-500.0,0.00035616,2]
[314849322,1708593050319,-500.0,0.00035616,2]
[314849323,1708593050329,-500.0,0.00035616,2]
[314849324,1708593050338,-639.01,0.00035616,2]
[314849325,1708593050348,-500.0,0.00035616,2]
[314849326,1708593050358,-597.26,0.00035616,2]
[314849327,1708593050368,-500.0,0.00035616,2]
[314849328,1708593050378,-500.0,0.00035616,2]
[314849329,1708593050387,-514.16359728,0.00035616,2]
[314849330,1708593050397,-500.0,0.00035616,2]
[314849331,1708593050407,-500.0,0.00035616,2]
[314849332,1708593050416,-1080.08,0.00035616,2]
[314849333,1708593050426,-1426.87,0.00035616,2]
[314849334,1708593050436,-528.2,0.00035616,2]
[314849335,1708593050446,-500.0,0.00035616,2]
[314849336,1708593050456,-500.0,0.00035616,2]
[314849337,1708593050466,-500.0,0.00035616,2]
[314849338,1708593050475,-510.8563181,0.00035616,2]
[314849339,1708593050485,-500.0,0.00035616,2]
[314849340,1708593050494,-500.0,0.00035616,2]
[314849341,1708593050504,-500.0,0.00035616,2]
[314849342,1708593050514,-500.0,0.00035616,2]
[314849343,1708593050525,-500.0,0.00035616,2]
[314849344,1708593050535,-500.0,0.00035616,2]
[314849345,1708593050545,-502.05055045,0.00035616,2]
[314849346,1708593050555,-579.34,0.00035616,2]
[314849347,1708593050565,-9527.74980193,0.00035616,3]
[314849348,1708593050574,-500.0,0.00035616,2]
[314849349,1708593050584,-500.0,0.00035616,2]
[314849350,1708593050593,-500.0,0.00035616,2]
[314849351,1708593050603,-500.0,0.00035616,2]
[314849352,1708593050612,-500.0,0.00035616,2]
[314849353,1708593050622,-500.0,0.00035616,2]
[314849354,1708593050632,-500.0,0.00035616,2]
[314849355,1708593050642,-500.0,0.00035616,2]
[314849356,1708593050652,-500.0,0.00035616,2]
[314849357,1708593050662,-954.91,0.00035616,2]
[314849358,1708593050671,-500.0,0.00035616,2]
[314849359,1708593050682,-500.0,0.00035616,2]
[314849360,1708593050692,-500.0,0.00035616,2]
[314849361,1708593050701,-500.0,0.00035616,2]
[314849362,1708593050713,-500.0,0.00035616,2]
[314849363,1708593050722,-500.0,0.00035616,2]
[314849364,1708593050732,-505.08992469,0.00035616,2]
[314849365,1708593050743,-500.0,0.00035616,2]
[314849366,1708593050753,-382.85955391,0.00035616,2]
[314849367,1708593050764,-500.0,0.00035616,2]
[314849368,1708593050774,-500.0,0.00035616,2]
[314849369,1708593050784,-500.0,0.00035616,2]
[314849370,1708593050794,-559.65229446,0.00035616,2]
[314849371,1708593050804,-505.10433456,0.00035616,2]
[314849372,1708593050814,-500.0,0.00035616,2]
[314849373,1708593050824,-500.0,0.00035616,2]
[314849374,1708593050834,-500.0,0.00035616,2]
[314849375,1708593050844,-603.67,0.00035616,2]
[314849376,1708593050854,-591.29859165,0.00035616,2]
[314849377,1708593050865,-1000.0,0.00035616,7]
[314849378,1708593050875,-500.0,0.00035616,2]
[314849379,1708593050885,-500.0,0.00035616,2]
[314849380,1708593050895,-500.0,0.00035616,2]
[314849381,1708593050905,-787.58,0.00035616,2]
[314849382,1708593050915,-508.97625946,0.00035616,2]
[314849383,1708593050925,-500.0,0.00035616,2]
[314849384,1708593050935,-648.18,0.00035616,2]
[314849385,1708593050945,-500.0,0.00035616,2]
[314849386,1708593050957,-501.86,0.00035616,2]
[314849387,1708593050966,-500.0,0.00035616,2]
[314849388,1708593050976,-500.0,0.00035616,2]
[314849389,1708593050986,-500.0,0.00035616,2]
[314849390,1708593050996,-500.0,0.00035616,2]
[314849391,1708593051006,-826.97,0.00035616,2]
[314849392,1708593051016,-500.0,0.00035616,2]
[314849393,1708593051027,-500.0,0.00035616,2]
[314849394,1708593051037,-500.0,0.00035616,2]
[314849395,1708593051048,-500.0,0.00035616,2]
[314849396,1708593051058,-500.0,0.00035616,2]
[314849397,1708593051069,-500.0,0.00035616,2]
[314849398,1708593051083,-500.0,0.00035616,2]
[314849399,1708593051092,-500.0,0.00035616,2]
[314849400,1708593051102,-500.0,0.00035616,2]
[314849401,1708593051112,-501.78904251,0.00035616,2]
[314849402,1708593051126,-500.0,0.00035616,2]
[314849403,1708593051135,-500.0,0.00035616,2]
[314849404,1708593051145,-500.0,0.00035616,2]
[314849405,1708593051155,-527.92364051,0.00035616,2]
[314849406,1708593051165,-651.22,0.00035616,2]
[314849407,1708593051175,-626.32,0.00035616,2]
[314849408,1708593051185,-517.8305273,0.00035616,2]
[314849409,1708593051194,-500.0,0.00035616,2]
[314849410,1708593051205,-500.0,0.00035616,2]
[314849411,1708593051215,-500.0,0.00035616,2]
[314849412,1708593051225,-500.0,0.00035616,2]
[314849413,1708593051243,-500.0,0.00035616,2]
[314849414,1708593051262,-991.42,0.00035616,2]
[314849415,1708593051272,-500.0,0.00035616,2]
[314849416,1708593051282,-509.52148808,0.00035616,2]
[314849417,1708593051292,-500.0,0.00035616,2]
[314849418,1708593051304,-500.0,0.00035616,2]
[314849419,1708593051313,-500.0,0.00035616,2]
[314849420,1708593051323,-500.0,0.00035616,2]
[314849421,1708593051333,-500.0,0.00035616,2]
[314849422,1708593051343,-547.16805592,0.00035616,2]
[314849423,1708593051353,-500.0,0.00035616,2]
[314849424,1708593051370,-500.0,0.00035616,2]
[314849425,1708593051401,-500.0,0.00035616,2]
[314849426,1708593051411,-521.78,0.00035616,2]
[314849427,1708593051421,-737.53,0.00035616,2]
[314849428,1708593051430,-500.0,0.00035616,2]
[314849429,1708593051440,-509.29648016,0.00035616,2]
[314849430,1708593051450,-500.0,0.00035616,2]
[314849431,1708593051460,-500.0,0.00035616,2]
[314849432,1708593051470,-879.44,0.00035616,2]
[314849433,1708593051479,-506.7229604,0.00035616,2]
[314849434,1708593051489,-500.0,0.00035616,2]
[314849435,1708593051499,-535.22507736,0.00035616,2]
[314849436,1708593051509,-500.57764864,0.00035616,2]
[314849437,1708593051518,-910.37,0.00035616,2]
[314849438,1708593051528,-500.0,0.00035616,2]
[314849439,1708593051538,-500.0,0.00035616,2]
[314849440,1708593051547,-500.0,0.00035616,2]
[314849441,1708593051557,-500.0,0.00035616,2]
[314849442,1708593051567,-500.0,0.00035616,2]
[314849443,1708593051577,-500.0,0.00035616,2]
[314849444,1708593051588,-934.28,0.00035616,2]
[314849445,1708593051598,-500.0,0.00035616,2]
[314849446,1708593051608,-500.0,0.00035616,2]
[314849447,1708593051617,-534.21857247,0.00035616,2]
[314849448,1708593051627,-500.0,0.00035616,2]
[314849449,1708593051637,-586.55,0.00035616,2]
[314849450,1708593051647,-500.0,0.00035616,2]
[314849451,1708593051656,-500.0,0.00035616,2]
[314849452,1708593051667,-567.33,0.00035616,2]
[314849453,1708593051677,-936.74,0.00035616,2]
[314849454,1708593051688,-1295.55,0.00035616,2]
[314849455,1708593051698,-562.52,0.00035616,2]
[314849456,1708593051708,-500.0,0.00035616,2]
[314849457,1708593051719,-500.0,0.00035616,2]
[314849458,1708593051729,-849.16,0.00035616,2]
[314849459,1708593051739,-643.01,0.00035616,2]
[314849460,1708593051749,-488.04757882,0.00035616,2]
[314849461,1708593051759,-2152.2,0.00035616,2]
[314849462,1708593051769,-500.0,0.00035616,2]
[314849463,1708593051780,-510.68997406,0.00035616,2]
[314849464,1708593051790,-500.0,0.00035616,2]
[314849465,1708593051800,-500.0,0.00035616,2]
[314849466,1708593051810,-500.0,0.00035616,2]
[314849467,1708593051820,-500.0,0.00035616,2]
[314849468,1708593051830,-1435.97,0.00035616,2]
[314849469,1708593051839,-500.0,0.00035616,2]
[314849470,1708593051849,-500.0,0.00035616,2]
[314849471,1708593051859,-500.0,0.00035616,2]
[314849472,1708593051869,-500.0,0.00035616,2]
[314849473,1708593051879,-500.0,0.00035616,2]
[314849474,1708593051889,-500.0,0.00035616,2]
[314849475,1708593051899,-1228.56,0.00035616,2]
[314849476,1708593051910,-500.0,0.00035616,2]
[314849477,1708593051920,-500.0,0.00035616,2]
[314849478,1708593051930,-500.0,0.00035616,2]
[314849479,1708593051940,-514.2488062,0.00035616,2]
[314849480,1708593051950,-500.0,0.00035616,2]
[314849481,1708593051962,-500.0,0.00035616,2]
[314849482,1708593051971,-697.01,0.00035616,2]
[314849483,1708593051982,-500.0,0.00035616,2]
[314849484,1708593051992,-500.0,0.00035616,2]
[314849485,1708593052003,-500.0,0.00035616,2]
[314849486,1708593052014,-500.0,0.00035616,2]
[314849487,1708593052024,-500.0,0.00035616,2]
[314849488,1708593052033,-702.7,0.00035616,2]
[314849489,1708593052043,-500.0,0.00035616,2]
[314849490,1708593052053,-933.61,0.00035616,2]
[314849491,1708593052064,-500.0,0.00035616,2]
[314849492,1708593052076,-634.84,0.00035616,2]
[314849493,1708593052086,-500.0,0.00035616,14]
[314849494,1708593052096,-748.97,0.00035616,2]
[314849495,1708593052106,-500.0,0.00035616,2]
[314849496,1708593052116,-547.19,0.00035616,2]
[314849497,1708593052126,-500.0,0.00035616,2]
[314849498,1708593052136,-500.0,0.00035616,2]
[314849499,1708593052147,-500.0,0.00035616,2]
[314849500,1708593052157,-500.0,0.00035616,2]
[314849501,1708593052166,-1078.84,0.00035616,2]
[314849502,1708593052176,-765.24,0.00035616,2]
[314849503,1708593052186,-500.0,0.00035616,2]
[314849504,1708593052196,-500.0,0.00035616,2]
[314849505,1708593052206,-500.0,0.00035616,2]
[314849506,1708593052216,-1348.67,0.00035616,2]
[314849507,1708593052227,-500.0,0.00035616,2]
[314849508,1708593052237,-500.0,0.00035616,2]
[314849509,1708593052247,-500.0,0.00035616,2]
[314849510,1708593052257,-600.16630431,0.00035616,2]
[314849511,1708593052267,-1071.85,0.00035616,2]
[314849512,1708593052279,-897.87,0.00035616,2]
[314849513,1708593052292,-500.0,0.00035616,2]
[314849514,1708593052301,-503.09180524,0.00035616,2]
[314849515,1708593052311,-505.69573042,0.00035616,2]
[314849516,1708593052321,-720.34,0.00035616,2]
[314849517,1708593052330,-500.0,0.00035616,2]
[314849518,1708593052340,-502.16226662,0.00035616,2]
[314849519,1708593052349,-500.0,0.00035616,2]
[314849520,1708593052359,-500.0,0.00035616,2]
[314849521,1708593052369,-500.0,0.00035616,2]
[314849522,1708593052378,-500.0,0.00035616,2]
[314849523,1708593052388,-500.0,0.00035616,2]
[314849524,1708593052398,-500.0,0.00035616,2]
[314849525,1708593052407,-657.4,0.00035616,2]
[314849526,1708593052417,-500.0,0.00035616,2]
[314849527,1708593052430,-500.0,0.00035616,2]
[314849528,1708593052440,-500.0,0.00035616,2]
[314849529,1708593052449,-500.0,0.00035616,2]
[314849530,1708593052460,-1000.28,0.00035616,2]
[314849531,1708593052470,-500.0,0.00035616,2]
[314849532,1708593052479,-500.0,0.00035616,2]
[314849533,1708593052489,-578.45,0.00035616,2]
[314849534,1708593052498,-507.35268548,0.00035616,2]
[314849535,1708593052508,-742.55,0.00035616,2]
[314849536,1708593052518,-500.0,0.00035616,2]
[314849537,1708593052527,-500.0,0.00035616,2]
[314849538,1708593052536,-500.0,0.00035616,2]
[314849539,1708593052546,-500.0,0.00035616,2]
[314849540,1708593052555,-504.09397833,0.00035616,2]
[314849541,1708593052564,-500.0,0.00035616,2]
[314849542,1708593052574,-500.0,0.00035616,2]
[314849543,1708593052583,-489.17150158,0.00035616,2]
[314849544,1708593052592,-500.0,0.00035616,2]
[314849545,1708593052601,-516.64597693,0.00035616,2]
[314849546,1708593052610,-1307.02,0.00035616,2]
[314849547,1708593052619,-500.0,0.00035616,2]
[314849548,1708593052628,-500.0,0.00035616,2]
[314849549,1708593052637,-692.4,0.00035616,2]
[314849550,1708593052646,-500.0,0.00035616,2]
[314849551,1708593052740,-503.0975203,0.00035616,2]
[314849552,1708593052750,-492.78660059,0.00035616,2]
[314849553,1708593052759,-500.0,0.00035616,2]
[314849554,1708593052769,-500.0,0.00035616,2]
[314849555,1708593052778,-1078.14,0.00035616,2]
[314849556,1708593052788,-500.0,0.00035616,2]
[314849557,1708593052797,-500.0,0.00035616,2]
[314849558,1708593052806,-500.0,0.00035616,2]
[314849559,1708593052815,-500.0,0.00035616,2]
[314849560,1708593052825,-500.0,0.00035616,2]
[314849561,1708593052834,-500.0,0.00035616,2]
[314849562,1708593052843,-500.0,0.00035616,2]
[314849563,1708593052852,-513.6499843,0.00035616,2]
[314849564,1708593052862,-500.0,0.00035616,2]
[314849565,1708593052871,-500.0,0.00035616,2]
[314849566,1708593052880,-500.0,0.00035616,2]
[314849567,1708593052890,-500.0,0.00035616,2]
[314849568,1708593052899,-500.0,0.00035616,2]
[314849569,1708593052909,-500.0,0.00035616,2]
[314849570,1708593052918,-356.72759068,0.00035616,2]
[314849571,1708593052928,-150.0,0.00035616,2]
[314849572,1708593052937,-500.0,0.00035616,2]
[314849573,1708593052947,-503.38336846,0.00035616,2]
[314849574,1708593052957,-500.0,0.00035616,2]
[314849575,1708593052967,-500.0,0.00035616,2]
[314849576,1708593052977,-500.0,0.00035616,2]
[314849577,1708593052986,-1359.2,0.00035616,2]
[314849578,1708593052995,-500.0,0.00035616,2]
[314849579,1708593053004,-500.0,0.00035616,2]
[314849580,1708593053013,-500.0,0.00035616,2]
[314849581,1708593053023,-798.39,0.00035616,2]
[314849582,1708593053032,-500.0,0.00035616,2]
[314849583,1708593053041,-500.0,0.00035616,2]
[314849584,1708593053051,-500.0,0.00035616,2]
[314849585,1708593053060,-5000.0,0.00035616,2]
[314849586,1708593053069,-500.0,0.00035616,2]
[314849587,1708593053079,-500.0,0.00035616,2]
[314849588,1708593053088,-908.25,0.00035616,2]
[314849589,1708593053100,-500.0,0.00035616,2]